bitfinex-derivatives/quotes_ETHF0:USTF0_20241102
["timestamp","ask_amount","ask_price","bid_price","bid_amount"]
[1730559953080,3.48941,2486.3,2486.1,0.28162]
[1730559953272,3.2078,2486.3,2486.2,0.28162]
[1730559954075,14.8687368,2486.9,2485.8,0.4207]
[1730559954076,3.48938,2486.6,2485.8,0.4207]
[1730559954377,0.8752,2486.7,2486.6,0.28157]
[1730559954576,0.8752,2486.7,2486.2,0.4476]
[1730559954883,1.15677,2486.7,2486.5,0.28158]
[1730559955180,1.15677,2486.7,2486.3,0.4207]
[1730559955181,0.8752,2486.7,2486.3,0.4207]
[1730559955384,0.8752,2486.7,2486.6,0.28157]
[1730559955584,0.4407,2486.7,2486.6,0.28157]
[1730559955777,0.28156,2486.7,2486.5,0.28158]
[1730559957185,0.28156,2486.7,2486.3,0.4207]
[1730559957378,3.2078,2486.8,2486.6,0.28157]
[1730559957577,3.48936,2486.8,2486.6,0.28157]
[1730559958378,0.28157,2486.7,2486.5,0.28158]
[1730559959186,0.28157,2486.7,2486.6,0.28157]
[1730559959485,0.28157,2486.7,2486.5,0.28158]
[1730559959787,0.28157,2486.7,2486.6,0.28157]
[1730559960381,3.2078,2486.8,2486.7,0.28156]
[1730559960692,3.2078,2487.4,2487.0,0.28153]
[1730559960881,3.6269,2487.4,2486.6,3.13674179]
[1730559961080,3.6269,2487.4,2486.8,0.70389]
[1730559961284,0.28151,2487.2,2486.9,0.4638]
[1730559961481,0.28151,2487.2,2487.1,0.28152]
[1730559961681,3.6269,2487.4,2486.9,0.4638]
[1730559961879,0.2815,2487.3,2487.2,0.28151]
[1730559962084,3.6269,2487.4,2487.3,0.2815]
[1730559962288,0.72217,2487.6,2487.4,0.28148]
[1730559962484,0.73875,2487.7,2487.1,3.13674179]
[1730559962691,0.73875,2487.7,2487.5,0.28146]
[1730559962985,0.4573,2487.7,2487.2,0.8786]
[1730559963377,0.4573,2487.7,2487.4,0.28148]
[1730559963378,0.28146,2487.6,2487.4,0.28148]
[1730559964086,3.2078,2487.5,2487.2,0.7192]
[1730559964389,3.6563,2487.5,2487.2,0.2815]
[1730559964695,0.4573,2487.7,2487.0,0.915]
[1730559965086,0.73875,2487.7,2487.5,0.28147]
[1730559965286,0.28145,2487.7,2487.6,0.72576]
[1730559965593,5.58925176,2487.8,2487.6,0.72576]
[1730559965793,5.30781176,2487.8,2487.6,0.4443]
[1730559965989,2.10001176,2487.8,2487.6,0.4443]
[1730559966292,2.38145176,2487.8,2487.6,0.72575]
[1730559967087,2.38145176,2487.8,2487.6,0.4443]
[1730559967293,2.10001176,2487.8,2487.6,0.4443]
[1730559967592,2.38145176,2487.8,2487.7,0.28145]
[1730559967794,2.10001176,2487.8,2487.7,0.28145]
[1730559968594,0.28145,2487.7,2487.6,0.4443]
[1730559968798,0.28147,2487.6,2487.4,0.28148]
[1730559969192,0.28147,2487.6,2487.5,0.28147]
[1730559969792,2.55171176,2487.8,2487.3,1.3066]
[1730559969793,0.4517,2487.8,2487.4,0.28148]
[1730559969993,0.4517,2487.8,2487.3,1.3066]
[1730559970195,0.28146,2487.7,2487.5,0.28147]
[1730559971197,0.28146,2487.7,2487.6,0.28146]
[1730559971397,0.28146,2487.7,2487.3,1.3066]
[1730559971598,0.28145,2487.8,2487.6,0.28146]
[1730559971793,0.28145,2487.8,2487.4,0.28148]
[1730559972096,0.8864,2488.1,2487.8,0.28143]
[1730559972301,0.28142,2488.0,2487.9,0.4573]
[1730559972500,0.28141,2488.1,2487.9,0.4573]
[1730559972691,0.4381,2488.4,2487.9,0.73872]
[1730559973008,0.28145,2487.7,2487.6,0.28146]
[1730559973196,7.04807179,2488.1,2487.3,0.8787]
[1730559973406,0.28146,2487.6,2487.5,0.28147]
[1730559973894,0.28147,2487.5,2487.4,0.73878]
[1730559974191,0.4343,2487.9,2487.5,0.28147]
[1730559974398,0.28146,2487.7,2487.5,0.28147]
[1730559974703,0.4343,2487.9,2487.5,0.28147]
[1730559974912,0.28146,2487.7,2487.5,0.28147]
[1730559975098,0.28144,2487.8,2487.7,0.28145]
[1730559975600,0.28144,2487.8,2487.6,0.28145]
[1730559976004,0.70322,2488.0,2487.8,0.28143]
[1730559976201,0.28143,2487.9,2487.8,0.28143]
[1730559976401,0.4218,2488.0,2487.4,3.6651]
[1730559976603,0.28145,2487.8,2487.6,0.28145]
[1730559976900,0.28145,2487.8,2487.4,3.6651]
[1730559977108,0.28146,2487.7,2487.5,0.28146]
[1730559977299,3.6296,2488.0,2487.4,3.6651]
[1730559977507,0.28145,2487.7,2487.6,0.28146]
[1730559977706,0.28145,2487.7,2487.5,0.28146]
[1730559978614,0.28145,2487.7,2487.6,0.28146]
[1730559979807,3.6296,2488.0,2487.4,0.4573]
[1730559980017,0.28141,2488.1,2488.0,0.28141]
[1730559981110,0.28141,2488.1,2488.0,0.28142]
[1730559981313,0.28141,2488.1,2487.9,0.28142]
[1730559981507,0.28141,2488.1,2488.0,0.4374]
[1730559982613,0.28144,2487.8,2487.7,0.74284]
[1730559983015,3.2078,2488.0,2487.7,0.4614]
[1730559983217,0.28143,2487.9,2487.8,0.28144]
[1730559983511,3.2078,2488.0,2487.8,0.28144]
[1730559983512,3.48922,2488.0,2487.8,0.28144]
[1730559984017,0.28143,2487.9,2487.8,0.28144]
[1730559985511,3.2078,2488.1,2487.7,0.4614]
[1730559985713,6.34454179,2488.1,2487.6,0.4374]
[1730559985915,3.2078,2487.8,2487.6,0.4374]
[1730559986117,3.48925,2487.8,2487.7,0.28145]
[1730559986307,3.48925,2487.8,2487.6,0.4374]
[1730559986308,0.28145,2487.7,2487.6,0.71885]
[1730559986617,0.28145,2487.7,2487.6,0.4374]
[1730559986804,0.28145,2487.7,2487.6,0.71886]
[1730559987111,0.28145,2487.8,2487.7,0.28145]
[1730559987408,0.28145,2487.7,2487.6,0.4374]
[1730559987606,0.73375,2487.7,2487.6,0.4374]
[1730559987808,0.28146,2487.6,2487.5,0.28147]
[1730559988114,0.28146,2487.6,2487.4,0.914]
[1730559988115,0.28147,2487.5,2487.4,0.4345]
[1730559989113,0.28147,2487.5,2487.4,0.71598]
[1730559989509,4.1055,2487.7,2487.4,0.4345]
[1730559989705,0.28147,2487.6,2487.5,0.28147]
[1730559989920,0.28147,2487.5,2487.4,0.71597]
[1730559990217,0.28147,2487.5,2487.4,0.71598]
[1730559990609,0.28147,2487.5,2487.4,0.4345]
[1730559990813,0.28147,2487.5,2487.4,0.71598]
[1730559991916,0.28147,2487.5,2487.4,0.4345]
[1730559992317,0.28147,2487.5,2487.4,0.71598]
[1730559993019,0.8977,2487.7,2487.4,0.4345]
[1730559993213,0.8977,2487.7,2487.5,0.28147]
[1730559993214,0.28147,2487.6,2487.5,0.28147]
[1730559993617,0.28147,2487.5,2487.4,0.71598]
[1730559993918,0.8977,2487.7,2487.4,0.4345]
[1730559994110,0.28147,2487.6,2487.5,0.28147]
[1730559994706,0.28147,2487.5,2487.4,0.71598]
[1730559995216,0.28147,2487.6,2487.5,0.28147]
[1730559995724,0.8977,2487.7,2487.4,0.4345]
[1730559996015,0.28147,2487.5,2487.4,0.4345]
[1730559996216,0.28147,2487.5,2487.4,0.71598]
[1730559997109,0.28147,2487.5,2487.4,0.4345]
[1730559997313,4.02,2487.5,2487.1,0.28151]
[1730559997513,0.2815,2487.3,2487.2,0.28151]
[1730559997712,0.28151,2487.2,2487.1,0.28151]
[1730559998413,3.2078,2487.6,2487.0,0.8908]
[1730559998617,0.2815,2487.3,2487.2,0.2815]
[1730559999520,3.2078,2487.6,2487.0,0.8908]
[1730559999711,0.28151,2487.2,2487.1,0.28151]
[1730559999912,0.28151,2487.3,2487.2,0.2815]
[1730560000113,0.28151,2487.2,2487.1,0.28151]
[1730560000514,0.28151,2487.2,2487.1,0.81599026]
[1730560000722,0.28151,2487.2,2487.1,0.28151]
[1730560001018,0.28152,2487.1,2487.0,1.17232]
[1730560001220,0.28152,2487.1,2487.0,0.8908]
[1730560001519,0.28152,2487.1,2486.6,3.48936]
[1730560001520,0.28156,2486.7,2486.6,3.48936]
[1730560001821,0.28156,2486.7,2486.6,4.02429748]
[1730560002212,1.342,2487.2,2486.6,3.74273748]
[1730560002410,0.28153,2487.1,2487.0,0.28153]
[1730560002620,0.28154,2487.0,2486.9,0.28154]
[1730560003918,0.28152,2487.1,2487.0,0.28152]
[1730560004116,0.28152,2487.2,2487.1,0.28152]
[1730560004715,0.28153,2487.1,2487.0,0.28152]
[1730560005919,6.00045762,2487.4,2486.9,1.3109]
[1730560006120,0.28153,2487.1,2487.0,0.28152]
[1730560007213,0.2815,2487.3,2487.2,0.2815]
[1730560007914,3.48929,2487.4,2487.3,0.2815]
[1730560009122,3.2078,2487.4,2487.0,3.13674179]
[1730560009327,0.2815,2487.3,2487.2,0.2815]
[1730560014629,3.2078,2487.4,2487.0,3.13674179]
[1730560014925,3.4893,2487.4,2487.3,0.2815]
[1730560016118,0.2815,2487.3,2487.2,0.2815]
[1730560016326,3.2078,2487.4,2487.3,0.2815]
[1730560017021,3.48928,2487.4,2487.3,0.2815]
[1730560017224,3.2078,2487.4,2487.3,0.2815]
[1730560017426,3.48928,2487.4,2487.3,0.2815]
[1730560018035,3.2078,2487.4,2487.0,4.05074179]
[1730560018234,0.2815,2487.3,2487.2,0.2815]
[1730560018828,0.28152,2487.2,2487.1,0.28151]
[1730560019126,2e-05,2487.2,2487.1,0.28151]
[1730560019333,2e-05,2487.2,2487.1,0.81687194]
[1730560019726,0.28154,2487.2,2487.1,0.81687194]
[1730560020630,0.28154,2487.2,2487.1,0.53536194]
[1730560020823,0.28154,2487.2,2486.8,1.04116826]
[1730560020824,2e-05,2487.2,2486.8,1.04116826]
[1730560021031,0.70383,2487.0,2486.6,1.32273826]
[1730560021230,1.3202,2486.9,2486.5,4.1172]
[1730560021529,0.28157,2486.6,2486.5,0.74298]
[1730560021723,0.28157,2486.6,2486.5,0.53579041]
[1730560021924,0.2816,2486.4,2486.3,0.736]
[1730560022127,0.2816,2486.4,2486.3,1.27187036]
[1730560022332,0.2816,2486.4,2486.3,0.81747036]
[1730560022528,5.29672762,2486.8,2486.2,0.4614]
[1730560022723,5.29672762,2486.8,2486.3,3.13674179]
[1730560022927,5.29672762,2486.8,2486.7,0.28156]
[1730560022928,3.2078,2486.8,2486.7,0.28156]
[1730560025539,0.28154,2486.9,2486.8,0.28155]
[1730560026442,0.28154,2487.0,2486.9,0.28154]
[1730560028435,0.28154,2487.0,2486.6,0.8775]
[1730560028436,6.17884762,2487.2,2486.6,0.8775]
[1730560028740,6.17884762,2487.2,2486.8,0.28155]
[1730560028741,0.28155,2486.9,2486.8,0.28155]
[1730560029341,0.28155,2486.9,2486.6,0.8775]
[1730560029342,6.17884762,2487.2,2486.6,0.8775]
[1730560029540,0.28153,2487.0,2486.9,0.28153]
[1730560029740,2e-05,2487.2,2487.1,0.28152]
[1730560030045,2e-05,2487.2,2487.1,4.33226179]
[1730560030243,2e-05,2487.2,2487.1,1.19552]
[1730560031438,2e-05,2487.2,2487.1,1.73178474]
[1730560031932,2e-05,2487.2,2487.1,1.73178314]
[1730560033231,0.28153,2487.2,2487.1,1.73178314]
[1730560033437,0.28153,2487.2,2487.1,0.53626314]
[1730560033741,2e-05,2487.2,2487.1,0.81778314]
[1730560034039,2e-05,2487.2,2487.1,1.25168314]
[1730560034439,0.28153,2487.2,2487.1,1.25168314]
[1730560035037,0.28153,2487.2,2487.1,0.71542]
[1730560037443,0.28153,2487.2,2487.1,0.4339]
[1730560037745,0.28153,2487.2,2487.0,0.8709]
[1730560037746,0.28152,2487.1,2487.0,0.72442]
[1730560038548,2e-05,2487.2,2487.1,0.28152]
[1730560039651,2e-05,2487.2,2487.1,0.81813002]
[1730560040554,2e-05,2487.2,2487.1,4.83893002]
[1730560043044,2e-05,2487.2,2487.1,0.81821774]
[1730560043239,0.28153,2487.2,2487.1,0.53669774]
[1730560043438,0.71583,2487.2,2487.1,0.81821774]
[1730560044236,2e-05,2487.2,2487.1,0.81821774]
[1730560046640,2e-05,2487.2,2487.1,0.28152]
[1730560046843,2e-05,2487.2,2487.1,0.81830453]
[1730560047045,2e-05,2487.2,2487.1,0.81830158]
[1730560047745,2e-05,2487.2,2487.1,1.67713479]
[1730560047946,2e-05,2487.2,2487.1,2.71830305]
[1730560048249,2e-05,2487.2,2487.1,0.81830158]
[1730560048638,2e-05,2487.2,2487.1,1.67717222]
[1730560049538,2e-05,2487.2,2487.1,2.71834048]
[1730560050549,2e-05,2487.2,2487.1,2.71841954]
[1730560050946,2e-05,2487.2,2487.1,6.73921954]
[1730560053248,2e-05,2487.2,2487.1,2.71841954]
[1730560054145,2e-05,2487.2,2487.1,1.32268826]
[1730560054350,2e-05,2487.2,2487.1,2.71831884]
[1730560055045,0.28153,2487.2,2487.1,2.71831884]
[1730560055246,0.74053,2487.2,2487.1,2.71831884]
[1730560055442,0.45902,2487.2,2487.1,2.71831884]
[1730560055648,0.74053,2487.2,2487.1,2.71831884]
[1730560056061,0.45902,2487.2,2487.1,0.81830099]
[1730560056242,0.45902,2487.2,2487.1,1.67723943]
[1730560056443,0.45902,2487.2,2487.1,0.81830099]
[1730560057944,0.28153,2487.2,2487.1,0.81830099]
[1730560058855,0.28153,2487.2,2487.1,0.53678099]
[1730560059059,4.02082,2487.2,2486.9,1.32270826]
[1730560059361,0.28153,2487.0,2486.9,0.28154]
[1730560059559,0.28153,2487.0,2486.9,0.81841316]
[1730560060055,0.28157,2486.6,2486.5,0.28158]
[1730560060259,0.28159,2486.5,2486.4,0.28159]
[1730560060452,1.2827,2486.5,2486.4,0.81844376]
[1730560060848,1.56429,2486.5,2486.4,0.81844376]
[1730560061059,1.56429,2486.5,2486.4,0.53685376]
[1730560061263,5.3043,2486.5,2486.1,1.32278826]
[1730560061462,5.3043,2486.5,2486.2,0.28162]
[1730560061463,0.28162,2486.3,2486.2,0.28162]
[1730560062057,0.28162,2486.2,2486.1,1.32279826]
[1730560062256,0.28162,2486.2,2486.1,1.04116826]
[1730560062462,4.30402,2486.2,2486.1,1.04116826]
[1730560065565,0.28162,2486.2,2486.1,1.04116826]
[1730560065758,0.28161,2486.3,2486.1,1.32278826]
[1730560065953,3.2078,2486.4,2486.1,1.04116826]
[1730560066162,3.4894,2486.4,2486.3,0.28161]
[1730560066367,1.2827,2486.5,2486.1,1.04116826]
[1730560066564,0.28161,2486.3,2486.1,1.32278826]
[1730560067161,0.28161,2486.3,2486.2,0.28162]
[1730560067455,0.4181,2486.5,2486.3,0.2816]
[1730560067761,0.4181,2486.5,2486.4,0.2816]
[1730560068161,4.4397,2486.5,2486.4,0.2816]
[1730560068465,4.4397,2486.5,2486.3,0.4246]
[1730560068769,4.4397,2486.5,2486.4,0.2816]
[1730560068770,0.4181,2486.5,2486.4,0.2816]
[1730560069070,0.69969,2486.5,2486.4,0.2816]
[1730560069363,4.72129,2486.5,2486.4,0.2816]
[1730560069759,4.4397,2486.5,2486.3,0.4246]
[1730560069965,0.28161,2486.4,2486.2,0.28161]
[1730560070158,0.28162,2486.3,2486.1,0.72483]
[1730560073268,0.4181,2486.5,2486.1,0.72483]
[1730560073470,0.28162,2486.2,2486.1,0.72483]
[1730560073766,0.28161,2486.3,2486.2,0.28162]
[1730560075364,3.9075,2486.5,2486.3,0.2816]
[1730560075569,3.9075,2486.5,2486.4,0.2816]
[1730560075869,0.6997,2486.5,2486.4,0.2816]
[1730560077473,3.6505,2486.7,2486.5,0.28158]
[1730560077670,0.28158,2486.6,2486.5,0.28158]
[1730560078570,3.48937,2486.7,2486.6,0.28157]
[1730560078869,3.48937,2486.7,2486.5,0.28157]
[1730560079465,3.2078,2486.7,2486.5,0.28158]
[1730560079675,0.28157,2486.6,2486.5,0.28158]
[1730560079874,0.28154,2486.9,2486.8,0.28155]
[1730560080064,3.2078,2487.0,2486.9,0.28154]
[1730560080065,3.48933,2487.0,2486.9,0.28154]
[1730560080264,3.2078,2487.0,2486.6,1.3436]
[1730560080571,0.28154,2486.9,2486.8,0.28155]
[1730560080764,3.2078,2487.0,2486.6,1.3436]
[1730560080966,3.48934,2487.0,2486.9,0.28154]
[1730560081869,0.28155,2486.9,2486.8,0.28155]
[1730560082067,0.28155,2486.8,2486.7,0.28156]
[1730560082665,0.28155,2486.9,2486.8,0.28155]
[1730560082871,6.34454179,2487.0,2486.6,0.8865]
[1730560083175,0.28158,2486.6,2486.5,0.28158]
[1730560083371,3.2078,2486.7,2486.6,0.28157]
[1730560083670,0.28155,2486.8,2486.7,0.28155]
[1730560084270,3.2078,2486.9,2486.3,1.55202]
[1730560084477,0.28155,2486.8,2486.7,0.28155]
[1730560087776,3.2078,2486.9,2486.3,1.55202]
[1730560088075,0.28154,2486.9,2486.8,0.28154]
[1730560088774,0.887,2487.1,2486.3,1.55202]
[1730560089077,0.28154,2487.0,2486.9,0.28154]
[1730560089270,0.887,2487.1,2486.6,0.4574]
[1730560089470,0.28155,2486.8,2486.7,0.28155]
[1730560089874,0.28158,2486.6,2486.5,0.28158]
[1730560090468,0.28158,2486.6,2486.4,0.4574]
[1730560090469,0.28159,2486.5,2486.4,0.4574]
[1730560090673,1.14557,2486.7,2486.6,0.28157]
[1730560090891,0.28156,2486.7,2486.6,0.28157]
[1730560091075,0.71566,2486.8,2486.7,0.28156]
[1730560091878,0.28156,2486.8,2486.7,0.28156]
[1730560094874,0.864,2487.0,2486.4,0.4574]
[1730560095176,0.864,2487.0,2486.4,0.28159]
[1730560095177,0.28159,2486.5,2486.4,0.28159]
[1730560095382,0.28159,2486.5,2486.3,0.848]
[1730560095383,0.2816,2486.4,2486.3,1.1296]
[1730560096086,0.4544,2486.7,2486.3,1.1296]
[1730560096087,0.8747,2486.6,2486.3,0.848]
[1730560096275,0.2816,2486.5,2486.4,0.28159]
[1730560098072,0.4449,2486.6,2486.3,0.848]
[1730560098269,0.72648,2486.6,2486.5,0.28159]
[1730560098780,0.2816,2486.5,2486.4,0.28159]
[1730560098969,0.4449,2486.6,2486.3,0.848]
[1730560099175,0.2816,2486.4,2486.3,0.848]
[1730560099377,0.70159,2486.5,2486.4,0.2816]
[1730560100282,0.28161,2486.4,2486.3,0.2816]
[1730560101676,0.28161,2486.3,2486.2,1.14151]
[1730560101980,0.4282,2486.3,2486.2,0.28161]
[1730560102387,0.2816,2486.4,2486.3,0.28161]
[1730560104090,0.28162,2486.3,2486.2,0.28162]
[1730560104286,0.28162,2486.3,2486.2,0.81858535]
[1730560104892,0.28162,2486.3,2486.2,0.81859195]
[1730560105283,0.28162,2486.3,2486.2,1.35568126]
[1730560105495,0.28162,2486.3,2486.2,1.07406126]
[1730560105812,0.28164,2486.1,2486.0,0.28164]
[1730560105997,0.28164,2486.1,2486.0,0.53711693]
[1730560105998,0.28163,2486.1,2486.0,0.53711693]
[1730560106196,0.28164,2486.0,2485.9,0.8599]
[1730560106498,0.28164,2486.0,2485.9,1.39698341]
[1730560106994,0.28164,2486.0,2485.9,0.8599]
[1730560107293,0.28164,2486.0,2485.9,1.14155]
[1730560107583,1.14643,2486.1,2486.0,0.28164]
[1730560107788,0.28164,2486.0,2485.9,1.14155]
[1730560108591,0.28164,2486.0,2485.9,0.28165]
[1730560109487,5.77102122,2486.2,2485.7,1.311]
[1730560109488,0.28166,2485.9,2485.8,0.28166]
[1730560109700,0.28166,2485.8,2485.7,1.59267]
[1730560109986,2.10472122,2486.1,2485.7,1.59267]
[1730560109987,0.28165,2486.0,2485.9,0.28165]
[1730560110182,0.28166,2485.9,2485.8,0.28166]
[1730560110380,2.10472122,2486.1,2485.7,1.311]
[1730560110788,0.28165,2486.0,2485.9,0.28165]
[1730560112192,2.84485122,2486.2,2486.1,0.28163]
[1730560113689,0.28163,2486.1,2486.0,0.28163]
[1730560114890,2.84484122,2486.2,2486.1,0.28163]
[1730560115197,0.28163,2486.1,2486.0,0.28163]
[1730560115637,2.10472122,2486.3,2486.2,0.28162]
[1730560115887,3.15708183,2486.7,2486.6,0.28157]
[1730560116094,2.10472122,2486.8,2486.3,0.70402]
[1730560116286,3.91745,2486.9,2486.8,0.28155]
[1730560116485,0.28156,2486.7,2486.6,0.28157]
[1730560117582,5.74062122,2486.9,2486.2,0.70406]
[1730560117790,5.74062122,2486.9,2486.5,0.28158]
[1730560117994,0.28157,2486.7,2486.5,0.28158]
[1730560118196,0.28157,2486.7,2486.2,0.70406]
[1730560118396,0.28157,2486.7,2486.1,2.36593849]
[1730560118397,5.74062122,2486.9,2486.3,0.53640685]
[1730560118597,0.28158,2486.6,2486.5,0.28158]
[1730560119694,2.10472122,2486.8,2486.1,3.07000849]
[1730560119897,0.28157,2486.7,2486.6,0.28157]
[1730560121000,0.28157,2486.6,2486.5,0.28158]
[1730560121796,0.28159,2486.5,2486.4,0.28159]
[1730560122300,0.2816,2486.4,2486.1,1.3127]
[1730560122888,0.2816,2486.4,2486.3,0.28161]
[1730560123292,6.34454179,2486.6,2486.1,1.3127]
[1730560123493,0.28159,2486.5,2486.1,1.3127]
[1730560123703,0.28159,2486.5,2486.4,0.2816]
[1730560123900,8.44926301,2486.6,2486.1,1.3127]
[1730560124398,0.28162,2486.2,2486.1,1.59433]
[1730560124995,3.6559,2486.3,2485.7,5.17303849]
[1730560125202,3.6559,2486.3,2485.8,1.84530366]
[1730560125401,3.6559,2486.3,2485.8,1.3088]
[1730560125597,0.28164,2486.1,2485.8,1.3088]
[1730560125799,0.28164,2486.1,2486.0,0.28164]
[1730560126994,0.28163,2486.1,2485.8,1.3088]
[1730560127194,0.28163,2486.1,2485.9,0.53649231]
[1730560127401,0.28163,2486.1,2485.8,1.3088]
[1730560127599,0.28163,2486.1,2485.9,0.53649463]
[1730560127801,0.28163,2486.1,2485.8,1.3088]
[1730560127997,3.6559,2486.3,2485.9,0.53651974]
[1730560128205,0.28163,2486.2,2486.1,0.28163]
[1730560130614,3.2078,2486.3,2485.8,1.3088]
[1730560130900,0.28161,2486.3,2486.2,0.28161]
[1730560131105,0.28161,2486.3,2486.0,0.28164]
[1730560131106,0.28164,2486.1,2486.0,0.28164]
[1730560131903,0.4323,2486.2,2485.9,0.28164]
[1730560131904,0.28165,2486.0,2485.9,0.28164]
[1730560132205,0.28165,2486.0,2485.9,0.28165]
[1730560133403,0.73624,2486.1,2486.0,0.28164]
[1730560134301,0.4546,2486.1,2486.0,0.28164]
[1730560134499,2.10472122,2486.3,2485.8,0.863]
[1730560134701,2.10472122,2486.3,2486.2,0.28162]
[1730560135102,2.10472122,2486.3,2486.0,0.28164]
[1730560135302,2.10472122,2486.3,2486.2,0.28162]
[1730560135711,2.38632122,2486.4,2486.0,0.4431]
[1730560135908,0.2816,2486.4,2486.3,0.28161]
[1730560136412,4.0216,2486.4,2486.0,0.4431]
[1730560136714,0.28162,2486.2,2486.1,0.28162]
[1730560136909,0.28162,2486.2,2486.0,0.4431]
[1730560136910,2.10363184,2486.3,2486.0,0.4431]
[1730560137111,0.28162,2486.2,2486.1,0.28163]
[1730560137614,2.38525184,2486.3,2486.2,0.28162]
[1730560138313,0.28163,2486.2,2486.1,0.28162]
[1730560138515,0.28163,2486.1,2486.0,0.28164]
[1730560138809,0.71264,2486.1,2486.0,0.28164]
[1730560139508,0.431,2486.1,2485.8,1.316]
[1730560139710,1.3042,2486.1,2485.8,1.316]
[1730560139909,0.28165,2486.0,2485.9,0.28165]
[1730560140214,0.28165,2485.9,2485.8,1.14466]
[1730560140803,3.13674179,2486.0,2485.7,0.28167]
[1730560141018,5.24037363,2486.0,2485.6,0.4248]
[1730560141213,3.68947184,2486.1,2485.6,1.12902]
[1730560141413,3.40820147,2486.1,2485.6,0.4248]
[1730560141717,0.28166,2485.9,2485.8,0.28166]
[1730560142215,0.28168,2485.7,2485.6,0.70648]
[1730560142413,0.28167,2485.8,2485.7,0.28167]
[1730560143411,0.28168,2485.7,2485.6,0.28168]
[1730560144117,0.28168,2485.7,2485.6,0.81851338]
[1730560144311,5.24074326,2486.0,2485.6,0.53683338]
[1730560144617,0.28167,2485.8,2485.7,0.28167]
[1730560145720,0.28169,2485.7,2485.6,0.28168]
[1730560146418,0.28169,2485.7,2485.5,0.8492]
[1730560146419,2.10400147,2485.9,2485.5,0.8492]
[1730560146622,0.28168,2485.7,2485.6,0.28168]
[1730560147315,2.10400147,2485.9,2485.5,0.8492]
[1730560147316,0.28169,2485.6,2485.5,0.8492]
[1730560147523,1.14169,2485.6,2485.5,0.8492]
[1730560147717,0.2817,2485.5,2485.4,0.2817]
[1730560147919,6.10074326,2485.6,2485.1,1.3468]
[1730560148121,0.28172,2485.4,2485.3,0.28172]
[1730560148310,2.10400147,2485.5,2485.1,1.3468]
[1730560148514,0.28171,2485.4,2485.3,0.28172]
[1730560148719,2.10400147,2485.5,2485.1,1.3468]
[1730560148921,0.28172,2485.4,2485.3,0.28172]
[1730560149113,0.28172,2485.3,2485.1,1.3468]
[1730560149420,0.28172,2485.3,2485.2,0.28173]
[1730560149610,0.28172,2485.4,2485.3,0.28172]
[1730560149915,6.10074326,2485.6,2485.3,0.28172]
[1730560150112,0.28171,2485.5,2485.4,0.28171]
[1730560151826,3.99674179,2485.6,2485.1,1.3468]
[1730560152022,0.2817,2485.5,2485.4,0.2817]
[1730560153627,3.99674179,2485.6,2485.1,1.3468]
[1730560153824,3.99674179,2485.6,2485.4,0.2817]
[1730560154128,4.27844179,2485.6,2485.4,0.2817]
[1730560154530,4.27844179,2485.6,2485.1,1.3468]
[1730560154828,4.27844179,2485.6,2485.5,0.2817]
[1730560155424,1.1417,2485.6,2485.5,0.2817]
[1730560156126,8.44854326,2485.8,2485.1,2.05116]
[1730560156437,3.85141179,2485.8,2485.7,0.28168]
[1730560156728,0.28169,2485.6,2485.5,0.2817]
[1730560157622,3.2078,2485.8,2485.7,0.28168]
[1730560157825,2.38563147,2486.1,2485.6,0.8685]
[1730560158027,2.38563147,2486.1,2486.0,0.28164]
[1730560158219,17.32600147,2486.2,2485.6,1.99811]
[1730560158425,17.32600147,2486.2,2486.0,0.28164]
[1730560158426,0.28164,2486.1,2486.0,0.28164]
[1730560158633,17.32600147,2486.2,2485.6,1.99811]
[1730560158824,2.38564147,2486.1,2485.6,1.99811]
[1730560159131,2.38564147,2486.1,2485.9,0.28164]
[1730560159132,0.28164,2486.1,2485.9,0.28164]
[1730560159425,17.32600147,2486.2,2485.9,0.28164]
[1730560159630,0.28164,2486.0,2485.9,0.28164]
[1730560160532,0.28163,2486.1,2486.0,0.28164]
[1730560161423,0.28163,2486.1,2485.9,0.28165]
[1730560161627,0.28163,2486.1,2486.0,0.8871]
[1730560162228,2.38563147,2486.1,2486.0,0.8871]
[1730560162425,0.28163,2486.1,2486.0,0.8871]
[1730560162832,3.41837179,2486.1,2486.0,0.8871]
[1730560164027,6.62617179,2486.1,2486.0,0.8871]
[1730560165128,8.73017326,2486.1,2486.0,0.8871]
[1730560165331,5.52237326,2486.1,2486.0,0.8871]
[1730560166635,8.73017326,2486.1,2486.0,0.8871]
[1730560166842,12.47094326,2486.1,2485.6,0.4254]
[1730560167049,0.28166,2485.9,2485.8,0.28166]
[1730560168446,2.10400147,2486.0,2485.7,0.8596]
[1730560168741,0.28165,2485.9,2485.8,0.28166]
[1730560169442,0.28166,2485.8,2485.7,1.14127]
[1730560169942,0.4376,2485.8,2485.7,1.14127]
[1730560170340,3.41840179,2485.9,2485.7,0.8596]
[1730560170643,3.41840179,2485.9,2485.8,0.28166]
[1730560171941,3.13674179,2485.9,2485.8,0.28166]
[1730560172141,2.38565147,2486.0,2485.7,0.8596]
[1730560172332,0.28165,2485.9,2485.8,0.28166]
[1730560174451,2.10400147,2486.0,2485.7,0.8596]
[1730560174650,2.38565147,2486.0,2485.9,0.28165]
[1730560175145,0.28165,2486.0,2485.9,0.28165]
[1730560175440,2.38688735,2486.0,2485.9,0.28165]
[1730560176740,0.28166,2485.9,2485.8,0.28166]
[1730560176941,0.28166,2485.8,2485.7,1.14127]
[1730560177336,4.78030179,2485.8,2485.7,0.28167]
[1730560177746,6.88581976,2485.8,2485.7,0.28167]
[1730560177938,6.60415976,2485.8,2485.7,0.28167]
[1730560178144,3.46741797,2485.8,2485.7,0.28167]